[Event "*** SCC Grand Prix: Titled Tuesday Blitz"]
[Site "Chess.com"]
[Date "2020.10.13"]
[Round "7"]
[White "Indianlad"]
[Black "kuban1991"]
[Result "1/2-1/2"]
[WhiteElo "2912"]
[BlackElo "2821"]
[TimeControl "180+1"]
[EndTime "11:18:27 PDT"]
[Termination "Game drawn - insufficient material"]

1. Nf3 {[%clk 0:03:00.9]} 1... g6 {[%clk 0:02:58.3]} 2. e4 {[%clk 0:03:00.5]}
2... Bg7 {[%clk 0:02:59.2]} 3. d4 {[%clk 0:03:00.5]} 3... c6 {[%clk 0:02:59.5]}
4. Bd3 {[%clk 0:02:58.6]} 4... d5 {[%clk 0:02:59.6]} 5. Nbd2 {[%clk 0:02:58.1]}
5... dxe4 {[%clk 0:02:59.5]} 6. Nxe4 {[%clk 0:02:58.3]} 6... Nf6 {[%clk
0:03:00.3]} 7. O-O {[%clk 0:02:58]} 7... O-O {[%clk 0:03:00.1]} 8. Re1 {[%clk
0:02:57.9]} 8... Nbd7 {[%clk 0:02:59.9]} 9. c3 {[%clk 0:02:57.8]} 9... b6 {[%clk
0:02:59.6]} 10. Bf4 {[%clk 0:02:54.4]} 10... Bb7 {[%clk 0:02:57.6]} 11. Qd2
{[%clk 0:02:54.8]} 11... c5 {[%clk 0:02:54]} 12. Bh6 {[%clk 0:02:47.1]} 12...
cxd4 {[%clk 0:02:51.6]} 13. Nxd4 {[%clk 0:02:43.6]} 13... Nc5 {[%clk 0:02:11.2]}
14. Nxf6+ {[%clk 0:02:42.3]} 14... exf6 {[%clk 0:02:08]} 15. Bxg7 {[%clk
0:02:42.6]} 15... Kxg7 {[%clk 0:02:08.5]} 16. Bf1 {[%clk 0:02:41.6]} 16... f5
{[%clk 0:01:44.8]} 17. Rad1 {[%clk 0:02:38]} 17... Qf6 {[%clk 0:01:44.3]} 18. f3
{[%clk 0:02:34.6]} 18... Rfe8 {[%clk 0:01:39]} 19. b4 {[%clk 0:02:31.3]} 19...
Ne6 {[%clk 0:01:24]} 20. Nxe6+ {[%clk 0:02:29.4]} 20... Rxe6 {[%clk 0:01:24.9]}
21. Rxe6 {[%clk 0:02:28.8]} 21... Qxe6 {[%clk 0:01:25.8]} 22. Qd4+ {[%clk
0:02:22]} 22... Kg8 {[%clk 0:01:13.1]} 23. Bc4 {[%clk 0:02:21.7]} 23... Qe7
{[%clk 0:01:09.3]} 24. Qd7 {[%clk 0:02:10.1]} 24... Re8 {[%clk 0:01:04.9]} 25.
Qxe7 {[%clk 0:02:10.1]} 25... Rxe7 {[%clk 0:01:05.8]} 26. Bb3 {[%clk 0:02:05.2]}
26... b5 {[%clk 0:00:58.2]} 27. Kf2 {[%clk 0:02:04.2]} 27... Rc7 {[%clk
0:00:48.2]} 28. Rc1 {[%clk 0:02:04.4]} 28... Rd7 {[%clk 0:00:36.5]} 29. c4
{[%clk 0:02:04.1]} 29... bxc4 {[%clk 0:00:34.4]} 30. Rxc4 {[%clk 0:02:05]} 30...
Ba6 {[%clk 0:00:20.3]} 31. Rc2 {[%clk 0:01:49.5]} 31... Rb7 {[%clk 0:00:12.9]}
32. a3 {[%clk 0:01:48.8]} 32... f4 {[%clk 0:00:12.2]} 33. Bc4 {[%clk 0:00:54.2]}
33... Bxc4 {[%clk 0:00:07]} 34. Rxc4 {[%clk 0:00:54.2]} 34... g5 {[%clk
0:00:07.5]} 35. g3 {[%clk 0:00:48.6]} 35... fxg3+ {[%clk 0:00:07.5]} 36. hxg3
{[%clk 0:00:49.5]} 36... Rd7 {[%clk 0:00:07.4]} 37. Rc5 {[%clk 0:00:48.2]} 37...
h6 {[%clk 0:00:07.1]} 38. g4 {[%clk 0:00:48.9]} 38... Kg7 {[%clk 0:00:06.1]} 39.
Ra5 {[%clk 0:00:48.6]} 39... Kg6 {[%clk 0:00:06.3]} 40. Ra6+ {[%clk 0:00:48.9]}
40... f6 {[%clk 0:00:06.4]} 41. b5 {[%clk 0:00:48]} 41... Rb7 {[%clk 0:00:04.1]}
42. a4 {[%clk 0:00:48.3]} 42... Re7 {[%clk 0:00:04.7]} 43. Kf1 {[%clk
0:00:42.2]} 43... Rf7 {[%clk 0:00:03.3]} 44. Ke2 {[%clk 0:00:42.3]} 44... h5
{[%clk 0:00:03.6]} 45. gxh5+ {[%clk 0:00:40]} 45... Kxh5 {[%clk 0:00:04.5]} 46.
Rc6 {[%clk 0:00:39.8]} 46... Kg6 {[%clk 0:00:03.3]} 47. a5 {[%clk 0:00:38.3]}
47... Kf5 {[%clk 0:00:02.3]} 48. a6 {[%clk 0:00:34.1]} 48... Kf4 {[%clk
0:00:01.7]} 49. Rc8 {[%clk 0:00:26.9]} 49... f5 {[%clk 0:00:01.6]} 50. Rb8
{[%clk 0:00:25.4]} 50... Rc7 {[%clk 0:00:01.6]} 51. Rb7 {[%clk 0:00:25.4]} 51...
Rc2+ {[%clk 0:00:02.2]} 52. Kd3 {[%clk 0:00:25.9]} 52... Rb2 {[%clk 0:00:02.8]}
53. Kc4 {[%clk 0:00:26.4]} 53... Kxf3 {[%clk 0:00:03.1]} 54. Rxa7 {[%clk
0:00:27]} 54... g4 {[%clk 0:00:03.7]} 55. Rg7 {[%clk 0:00:27.4]} 55... g3 {[%clk
0:00:03.6]} 56. a7 {[%clk 0:00:27.7]} 56... Ra2 {[%clk 0:00:04.2]} 57. b6 {[%clk
0:00:28.4]} 57... g2 {[%clk 0:00:04.9]} 58. Rxg2 {[%clk 0:00:27]} 58... Kxg2
{[%clk 0:00:04.7]} 59. b7 {[%clk 0:00:27.7]} 59... Rxa7 {[%clk 0:00:05.2]} 60.
b8=Q {[%clk 0:00:28.4]} 60... Rg7 {[%clk 0:00:05.4]} 61. Qe5 {[%clk 0:00:27.7]}
61... Rg4+ {[%clk 0:00:05.5]} 62. Kd3 {[%clk 0:00:27.4]} 62... f4 {[%clk
0:00:06.4]} 63. Qf5 {[%clk 0:00:24.8]} 63... Rg3+ {[%clk 0:00:06.2]} 64. Ke2
{[%clk 0:00:20.5]} 64... f3+ {[%clk 0:00:07.1]} 65. Ke3 {[%clk 0:00:19.9]} 65...
f2+ {[%clk 0:00:06.8]} 66. Ke2 {[%clk 0:00:19.9]} 66... Re3+ {[%clk 0:00:07.4]}
67. Kxe3 {[%clk 0:00:13.8]} 67... f1=Q {[%clk 0:00:08.3]} 68. Qg4+ {[%clk
0:00:12.8]} 68... Kh1 {[%clk 0:00:08.5]} 69. Qh4+ {[%clk 0:00:13]} 69... Kg1
{[%clk 0:00:08.9]} 70. Qg4+ {[%clk 0:00:13.6]} 70... Qg2 {[%clk 0:00:09.5]} 71.
Qxg2+ {[%clk 0:00:13.7]} 71... Kxg2 {[%clk 0:00:09.7]} 1/2-1/2

[Event "*** SCC Grand Prix: Titled Tuesday Blitz"]
[Site "Chess.com"]
[Date "2020.10.13"]
[Round "7"]
[White "ExcitingTrap"]
[Black "banane_verte"]
[Result "1-0"]
[WhiteElo "2314"]
[BlackElo "2425"]
[TimeControl "180+1"]
[EndTime "11:18:43 PDT"]
[Termination "ExcitingTrap won by resignation"]

1. e4 {[%clk 0:03:00.9]} 1... d5 {[%clk 0:02:59.5]} 2. exd5 {[%clk 0:03:00.7]}
2... Qxd5 {[%clk 0:03:00.4]} 3. Nc3 {[%clk 0:03:00.6]} 3... Qa5 {[%clk
0:03:00.3]} 4. d4 {[%clk 0:03:00.2]} 4... Nf6 {[%clk 0:02:51.7]} 5. Nf3 {[%clk
0:02:59.3]} 5... Bf5 {[%clk 0:02:51.4]} 6. Bc4 {[%clk 0:02:59.3]} 6... e6 {[%clk
0:02:51.5]} 7. Bd2 {[%clk 0:02:59.6]} 7... c6 {[%clk 0:02:51.5]} 8. Nd5 {[%clk
0:02:59.8]} 8... Qd8 {[%clk 0:02:51.8]} 9. Nxf6+ {[%clk 0:03:00.1]} 9... Qxf6
{[%clk 0:02:52.7]} 10. c3 {[%clk 0:02:53.7]} 10... Bd6 {[%clk 0:02:51.1]} 11.
O-O {[%clk 0:02:52.1]} 11... Bg4 {[%clk 0:02:50]} 12. Be2 {[%clk 0:02:51.5]}
12... O-O {[%clk 0:02:47]} 13. h3 {[%clk 0:02:50.5]} 13... Bxf3 {[%clk
0:02:47.1]} 14. Bxf3 {[%clk 0:02:50.4]} 14... Nd7 {[%clk 0:02:48]} 15. Re1
{[%clk 0:02:48.3]} 15... Rfe8 {[%clk 0:02:47.3]} 16. Qc1 {[%clk 0:02:33.8]}
16... h6 {[%clk 0:02:45.9]} 17. Qc2 {[%clk 0:02:31.7]} 17... Bf4 {[%clk
0:02:44.4]} 18. Rad1 {[%clk 0:02:25.3]} 18... Rad8 {[%clk 0:02:42.9]} 19. Bxf4
{[%clk 0:02:19]} 19... Qxf4 {[%clk 0:02:43.8]} 20. Re4 {[%clk 0:02:19.2]} 20...
Qc7 {[%clk 0:02:40.6]} 21. Rde1 {[%clk 0:02:14.9]} 21... Nf6 {[%clk 0:02:36.4]}
22. Re5 {[%clk 0:02:14.5]} 22... Nd7 {[%clk 0:02:32.7]} 23. R5e4 {[%clk
0:02:13.6]} 23... Nf6 {[%clk 0:02:33.1]} 24. Re5 {[%clk 0:02:14]} 24... Rd7
{[%clk 0:02:31.3]} 25. a4 {[%clk 0:02:07.2]} 25... a5 {[%clk 0:02:30.3]} 26. g3
{[%clk 0:01:56.7]} 26... Red8 {[%clk 0:02:28.3]} 27. Qb3 {[%clk 0:01:43.9]}
27... Nd5 {[%clk 0:02:14.4]} 28. Kg2 {[%clk 0:01:31.7]} 28... Ne7 {[%clk
0:02:10.2]} 29. h4 {[%clk 0:01:20.8]} 29... Ng6 {[%clk 0:02:05.2]} 30. Rxe6
{[%clk 0:01:06]} 30... fxe6 {[%clk 0:01:58.8]} 31. Qxe6+ {[%clk 0:01:06.2]}
31... Kf8 {[%clk 0:01:17.9]} 32. Qxg6 {[%clk 0:01:03.5]} 32... Qd6 {[%clk
0:01:15.1]} 33. Qh7 {[%clk 0:00:55.4]} 33... Qf6 {[%clk 0:00:47.3]} 34. Re5
{[%clk 0:00:52.4]} 34... Qf7 {[%clk 0:00:36.7]} 35. Rf5 {[%clk 0:00:48.6]} 35...
Qxf5 {[%clk 0:00:32.8]} 36. Qxf5+ {[%clk 0:00:48.1]} 36... Ke7 {[%clk
0:00:33.7]} 37. Qe5+ {[%clk 0:00:44.5]} 37... Kf8 {[%clk 0:00:32.4]} 38. Bg4
{[%clk 0:00:44.3]} 38... Re7 {[%clk 0:00:31.5]} 39. Be6 {[%clk 0:00:42.1]} 39...
Ke8 {[%clk 0:00:16.3]} 40. Qf5 {[%clk 0:00:41.4]} 40... Rd6 {[%clk 0:00:15.1]}
41. Bb3 {[%clk 0:00:34.1]} 41... Rdd7 {[%clk 0:00:10.5]} 42. g4 {[%clk
0:00:25.6]} 42... Kd8 {[%clk 0:00:09.6]} 43. g5 {[%clk 0:00:20.1]} 43... hxg5
{[%clk 0:00:09.4]} 44. hxg5 {[%clk 0:00:20.3]} 44... Kc7 {[%clk 0:00:10.3]} 45.
g6 {[%clk 0:00:19.5]} 45... b6 {[%clk 0:00:09.9]} 46. Qf8 {[%clk 0:00:19.4]}
46... Kb7 {[%clk 0:00:09.7]} 47. Bf7 {[%clk 0:00:19.8]} 47... c5 {[%clk
0:00:07.3]} 48. d5 {[%clk 0:00:18.8]} 48... Re5 {[%clk 0:00:03.3]} 49. Be6
{[%clk 0:00:18.5]} 49... Rg5+ {[%clk 0:00:04.2]} 50. Kf3 {[%clk 0:00:18.1]}
50... Rc7 {[%clk 0:00:04.1]} 51. Qxg7 {[%clk 0:00:17.6]} 51... Rxg7 {[%clk
0:00:03.9]} 52. Kf4 {[%clk 0:00:17.6]} 52... R5xg6 {[%clk 0:00:04.2]} 53. Ke5
{[%clk 0:00:17.1]} 53... Rg2 {[%clk 0:00:03.8]} 54. f4 {[%clk 0:00:17]} 54...
Re2+ {[%clk 0:00:04.7]} 55. Kd6 {[%clk 0:00:17]} 55... Rg6 {[%clk 0:00:04.7]}
56. f5 {[%clk 0:00:17.5]} 56... Rg1 {[%clk 0:00:04.4]} 57. f6 {[%clk 0:00:17.4]}
57... Rf1 {[%clk 0:00:04.8]} 58. f7 {[%clk 0:00:17.4]} 58... Ref2 {[%clk
0:00:05.3]} 59. Ke7 {[%clk 0:00:17.4]} 59... Rf3 {[%clk 0:00:02.1]} 60. d6
{[%clk 0:00:17.8]} 60... Kc6 {[%clk 0:00:02.5]} 61. d7 {[%clk 0:00:17.8]} 61...
Rd1 {[%clk 0:00:02.3]} 62. d8=Q {[%clk 0:00:15.8]} 62... Rxd8 {[%clk 0:00:01.9]}
63. Kxd8 {[%clk 0:00:16.7]} 63... Kd6 {[%clk 0:00:02.6]} 64. Ke8 {[%clk
0:00:16.8]} 64... Rf6 {[%clk 0:00:02.8]} 65. Bb3 {[%clk 0:00:15.4]} 65... Rf5
{[%clk 0:00:02.5]} 66. f8=Q+ {[%clk 0:00:15.6]} 66... Rxf8+ {[%clk 0:00:03]} 67.
Kxf8 {[%clk 0:00:16.5]} 67... Kc6 {[%clk 0:00:03.1]} 68. Ke7 {[%clk 0:00:16.9]}
68... b5 {[%clk 0:00:04]} 69. axb5+ {[%clk 0:00:17.1]} 69... Kxb5 {[%clk
0:00:04.9]} 70. Kd6 {[%clk 0:00:17.6]} 70... c4 {[%clk 0:00:05.4]} 71. Bc2
{[%clk 0:00:17.6]} 71... a4 {[%clk 0:00:04.7]} 72. Kd5 {[%clk 0:00:17.9]} 72...
a3 {[%clk 0:00:05]} 73. bxa3 {[%clk 0:00:18.8]} 73... Ka5 {[%clk 0:00:04.7]} 74.
Kxc4 {[%clk 0:00:18.9]} 74... Kb6 {[%clk 0:00:04.9]} 75. Kb4 {[%clk 0:00:19.6]}
75... Kc6 {[%clk 0:00:05.8]} 76. c4 {[%clk 0:00:20.5]} 76... Kb6 {[%clk
0:00:06.6]} 77. c5+ {[%clk 0:00:21.4]} 77... Kc7 {[%clk 0:00:06.7]} 78. Kc4
{[%clk 0:00:22.3]} 78... Kb7 {[%clk 0:00:07.6]} 79. Kd5 {[%clk 0:00:22.4]} 79...
Kc7 {[%clk 0:00:08.5]} 80. c6 {[%clk 0:00:23.3]} 1-0

[Event "*** SCC Grand Prix: Titled Tuesday Blitz"]
[Site "Chess.com"]
[Date "2020.10.13"]
[Round "7"]
[White "AurumO"]
[Black "Pavalamalli"]
[Result "0-1"]
[WhiteElo "1922"]
[BlackElo "2290"]
[TimeControl "180+1"]
[EndTime "11:18:49 PDT"]
[Termination "Pavalamalli won on time"]

1. e4 {[%clk 0:03:00.9]} 1... c5 {[%clk 0:02:54.8]} 2. c3 {[%clk 0:03:00.4]}
2... d5 {[%clk 0:02:52.8]} 3. exd5 {[%clk 0:03:01.3]} 3... Qxd5 {[%clk
0:02:53.1]} 4. d4 {[%clk 0:02:52.5]} 4... cxd4 {[%clk 0:02:53]} 5. cxd4 {[%clk
0:02:53.4]} 5... Nc6 {[%clk 0:02:52.9]} 6. Nf3 {[%clk 0:02:50.1]} 6... Nf6
{[%clk 0:02:52.4]} 7. Nc3 {[%clk 0:02:50.2]} 7... Qd8 {[%clk 0:02:52.1]} 8. d5
{[%clk 0:02:48.7]} 8... Nb4 {[%clk 0:02:47.2]} 9. Qa4+ {[%clk 0:02:42.2]} 9...
Qd7 {[%clk 0:02:44.8]} 10. Qxb4 {[%clk 0:02:42.3]} 10... Nxd5 {[%clk 0:02:44.8]}
11. Nxd5 {[%clk 0:02:31.8]} 11... Qxd5 {[%clk 0:02:45.1]} 12. Bb5+ {[%clk
0:02:32]} 12... Bd7 {[%clk 0:02:43.6]} 13. Bxd7+ {[%clk 0:02:32.1]} 13... Qxd7
{[%clk 0:02:43.8]} 14. O-O {[%clk 0:02:32.1]} 14... e6 {[%clk 0:02:42.6]} 15.
Qe4 {[%clk 0:02:25.1]} 15... Be7 {[%clk 0:02:39.8]} 16. Bf4 {[%clk 0:02:16.9]}
16... O-O {[%clk 0:02:38.4]} 17. Rfd1 {[%clk 0:02:17]} 17... Qb5 {[%clk
0:02:37.4]} 18. Qe5 {[%clk 0:02:09.7]} 18... Qb4 {[%clk 0:02:23.8]} 19. Bd2
{[%clk 0:02:02]} 19... Qg4 {[%clk 0:01:59.9]} 20. Qg3 {[%clk 0:02:00.7]} 20...
Qf5 {[%clk 0:01:57.9]} 21. Bc3 {[%clk 0:01:58.8]} 21... g6 {[%clk 0:01:51.2]}
22. Qe5 {[%clk 0:01:50.7]} 22... Qxe5 {[%clk 0:01:49.7]} 23. Bxe5 {[%clk
0:01:46.3]} 23... Rac8 {[%clk 0:01:49.1]} 24. Rac1 {[%clk 0:01:45.5]} 24... Rfd8
{[%clk 0:01:45]} 25. h4 {[%clk 0:01:40.7]} 25... f6 {[%clk 0:01:44.7]} 26. Bc3
{[%clk 0:01:39.4]} 26... e5 {[%clk 0:01:44.8]} 27. h5 {[%clk 0:01:32.8]} 27...
gxh5 {[%clk 0:01:44.4]} 28. Nh4 {[%clk 0:01:33.2]} 28... Kf7 {[%clk 0:01:40.8]}
29. Nf5 {[%clk 0:01:33.1]} 29... Bc5 {[%clk 0:01:39]} 30. a3 {[%clk 0:01:26.6]}
30... Ke6 {[%clk 0:01:33.3]} 31. Ng3 {[%clk 0:01:25.9]} 31... h4 {[%clk
0:01:31.8]} 32. Ne4 {[%clk 0:01:25.2]} 32... Be7 {[%clk 0:01:31.2]} 33. Rxd8
{[%clk 0:01:15.8]} 33... Rxd8 {[%clk 0:01:30.7]} 34. Re1 {[%clk 0:01:16.5]}
34... Rg8 {[%clk 0:01:26.3]} 35. Nd2 {[%clk 0:00:49.3]} 35... Bd6 {[%clk
0:01:19.7]} 36. Nf3 {[%clk 0:00:43.3]} 36... h3 {[%clk 0:01:17.5]} 37. g3 {[%clk
0:00:43.1]} 37... Kf5 {[%clk 0:01:15]} 38. Kh2 {[%clk 0:00:31.9]} 38... Bc5
{[%clk 0:01:14.7]} 39. Re2 {[%clk 0:00:20.6]} 39... Kg4 {[%clk 0:01:07.6]} 40.
Nd2 {[%clk 0:00:15.3]} 40... Rd8 {[%clk 0:00:58.6]} 41. Ne4 {[%clk 0:00:12.4]}
41... Be7 {[%clk 0:00:58.6]} 42. Nd2 {[%clk 0:00:10.6]} 42... Rd3 {[%clk
0:00:56.2]} 43. f3+ {[%clk 0:00:10.5]} 43... Kg5 {[%clk 0:00:49]} 44. Kxh3
{[%clk 0:00:10.8]} 44... Kg6 {[%clk 0:00:46.2]} 45. Ne4 {[%clk 0:00:09.6]} 45...
Rxf3 {[%clk 0:00:45.5]} 46. Kg2 {[%clk 0:00:08.7]} 46... Rd3 {[%clk 0:00:44.9]}
47. Nf2 {[%clk 0:00:09]} 47... Rd5 {[%clk 0:00:41.5]} 48. Rd2 {[%clk 0:00:09.2]}
48... Rb5 {[%clk 0:00:37.2]} 49. Ne4 {[%clk 0:00:08.9]} 49... f5 {[%clk
0:00:32]} 50. Nd6 {[%clk 0:00:09.3]} 50... Rb6 {[%clk 0:00:18.3]} 51. Nc4 {[%clk
0:00:09.2]} 51... Re6 {[%clk 0:00:17.7]} 52. Nxe5+ {[%clk 0:00:09.5]} 52... Kh5
{[%clk 0:00:16.1]} 53. Kf3 {[%clk 0:00:08]} 53... Bf6 {[%clk 0:00:16.2]} 54.
Rh2+ {[%clk 0:00:06.6]} 54... Kg5 {[%clk 0:00:14.8]} 55. Nd3 {[%clk 0:00:05.2]}
55... Bxc3 {[%clk 0:00:13.9]} 56. bxc3 {[%clk 0:00:06.1]} 56... Rc6 {[%clk
0:00:13.9]} 57. Rc2 {[%clk 0:00:05.2]} 57... Ra6 {[%clk 0:00:11.8]} 58. Ra2
{[%clk 0:00:04.6]} 58... Rc6 {[%clk 0:00:11.8]} 59. Rc2 {[%clk 0:00:05.3]} 59...
Rc4 {[%clk 0:00:11]} 60. Ne5 {[%clk 0:00:04.8]} 60... Ra4 {[%clk 0:00:10.3]} 61.
Nf7+ {[%clk 0:00:03.4]} 61... Kf6 {[%clk 0:00:09.2]} 62. Nd6 {[%clk 0:00:04.3]}
62... b6 {[%clk 0:00:08.2]} 63. Nb5 {[%clk 0:00:01.6]} 63... Ra5 {[%clk
0:00:07.8]} 64. Nd4 {[%clk 0:00:02.2]} 64... Rxa3 {[%clk 0:00:07.2]} 65. Kg2
{[%clk 0:00:02.3]} 65... a5 {[%clk 0:00:07.1]} 66. Rf2 {[%clk 0:00:02.2]} 66...
Rxc3 {[%clk 0:00:06]} 67. Rxf5+ {[%clk 0:00:03.1]} 67... Kg6 {[%clk 0:00:06.1]}
68. Rb5 {[%clk 0:00:03.2]} 68... Rd3 {[%clk 0:00:06]} 69. Nf3 {[%clk 0:00:03.1]}
69... Rd6 {[%clk 0:00:05.4]} 70. Nh4+ {[%clk 0:00:02.7]} 70... Kg7 {[%clk
0:00:05.5]} 71. Kh3 {[%clk 0:00:03.2]} 71... Kf7 {[%clk 0:00:05.7]} 72. Nf5
{[%clk 0:00:03.5]} 72... Rf6 {[%clk 0:00:05.4]} 73. Nh4 {[%clk 0:00:04.4]} 73...
a4 {[%clk 0:00:05.1]} 74. g4 {[%clk 0:00:04.6]} 74... a3 {[%clk 0:00:05]} 75.
Ng2 {[%clk 0:00:03.3]} 75... a2 {[%clk 0:00:04.9]} 0-1

[Event "*** SCC Grand Prix: Titled Tuesday Blitz"]
[Site "Chess.com"]
[Date "2020.10.13"]
[Round "7"]
[White "Forantes"]
[Black "LubovMarkelova"]
[Result "1-0"]
[WhiteElo "2441"]
[BlackElo "2247"]
[TimeControl "180+1"]
[EndTime "11:18:50 PDT"]
[Termination "Forantes won by resignation"]

1. Nf3 {[%clk 0:03:00.9]} 1... d5 {[%clk 0:02:57.1]} 2. g3 {[%clk 0:03:00.3]}
2... Nf6 {[%clk 0:02:56.5]} 3. Bg2 {[%clk 0:03:00.6]} 3... Bf5 {[%clk
0:02:57.1]} 4. O-O {[%clk 0:03:01.2]} 4... h6 {[%clk 0:02:57.6]} 5. d4 {[%clk
0:03:01.9]} 5... c6 {[%clk 0:02:57.9]} 6. c4 {[%clk 0:03:02.3]} 6... e6 {[%clk
0:02:58.4]} 7. Nc3 {[%clk 0:03:02.9]} 7... Be7 {[%clk 0:02:58.5]} 8. Nd2 {[%clk
0:03:02.2]} 8... Nbd7 {[%clk 0:02:57.9]} 9. e4 {[%clk 0:03:02.5]} 9... dxe4
{[%clk 0:02:57.8]} 10. Ndxe4 {[%clk 0:03:03.4]} 10... Nxe4 {[%clk 0:02:58.4]}
11. Nxe4 {[%clk 0:03:04.3]} 11... O-O {[%clk 0:02:57.7]} 12. Re1 {[%clk
0:02:53.7]} 12... Nf6 {[%clk 0:02:57.6]} 13. Nc3 {[%clk 0:02:54]} 13... Qb6
{[%clk 0:02:57]} 14. Qb3 {[%clk 0:02:05.2]} 14... Rfd8 {[%clk 0:02:51]} 15. d5
{[%clk 0:01:50.6]} 15... Bc5 {[%clk 0:02:39.8]} 16. Qxb6 {[%clk 0:01:48.9]}
16... axb6 {[%clk 0:02:27.4]} 17. dxc6 {[%clk 0:01:36.3]} 17... bxc6 {[%clk
0:02:28.3]} 18. Bxc6 {[%clk 0:01:37.2]} 18... Rac8 {[%clk 0:02:26.1]} 19. Bf3
{[%clk 0:01:36]} 19... Bd3 {[%clk 0:02:16.9]} 20. b3 {[%clk 0:01:29.8]} 20...
Bd4 {[%clk 0:02:09.5]} 21. Bb2 {[%clk 0:01:29]} 21... b5 {[%clk 0:02:00]} 22.
Red1 {[%clk 0:01:07.6]} 22... bxc4 {[%clk 0:01:58.9]} 23. bxc4 {[%clk
0:01:05.8]} 23... Bxc4 {[%clk 0:01:58.7]} 24. Na4 {[%clk 0:00:50.7]} 24... Bxb2
{[%clk 0:01:48.3]} 25. Rxd8+ {[%clk 0:00:50.4]} 25... Rxd8 {[%clk 0:01:47.4]}
26. Nxb2 {[%clk 0:00:51.3]} 26... Bd5 {[%clk 0:01:43.6]} 27. Be2 {[%clk
0:00:43.4]} 27... Rb8 {[%clk 0:01:41.4]} 28. Nc4 {[%clk 0:00:38.5]} 28... Ne4
{[%clk 0:01:36.2]} 29. a4 {[%clk 0:00:38.3]} 29... Rb4 {[%clk 0:01:16.3]} 30.
Ne3 {[%clk 0:00:13.9]} 30... Nc3 {[%clk 0:01:12.1]} 31. Bd1 {[%clk 0:00:13.9]}
31... Be4 {[%clk 0:00:44.8]} 32. a5 {[%clk 0:00:13]} 32... f5 {[%clk 0:00:28.3]}
33. a6 {[%clk 0:00:12.8]} 33... g5 {[%clk 0:00:26.6]} 34. a7 {[%clk 0:00:10]}
34... Ba8 {[%clk 0:00:26.6]} 35. Bh5 {[%clk 0:00:05.8]} 35... Rb1+ {[%clk
0:00:19.6]} 36. Rxb1 {[%clk 0:00:05.6]} 36... Nxb1 {[%clk 0:00:20.2]} 37. Nc4
{[%clk 0:00:05.5]} 37... Nc3 {[%clk 0:00:12.7]} 38. Nb6 {[%clk 0:00:05.7]} 38...
Bb7 {[%clk 0:00:13.4]} 39. a8=Q+ {[%clk 0:00:05.8]} 39... Bxa8 {[%clk
0:00:14.1]} 40. Nxa8 {[%clk 0:00:06.7]} 40... Kg7 {[%clk 0:00:14.2]} 41. Nc7
{[%clk 0:00:07.1]} 41... Kf6 {[%clk 0:00:14.9]} 42. f4 {[%clk 0:00:06.9]} 42...
e5 {[%clk 0:00:14.5]} 43. Ne8+ {[%clk 0:00:05.8]} 43... Ke6 {[%clk 0:00:13.8]}
44. fxe5 {[%clk 0:00:04.2]} 44... Kxe5 {[%clk 0:00:13.5]} 45. Kf2 {[%clk
0:00:04.9]} 45... f4 {[%clk 0:00:13.9]} 46. g4 {[%clk 0:00:04.9]} 46... Ne4+
{[%clk 0:00:12.5]} 47. Ke2 {[%clk 0:00:05.3]} 47... Nc3+ {[%clk 0:00:12.5]} 48.
Kf3 {[%clk 0:00:05.7]} 48... Nd5 {[%clk 0:00:12.7]} 49. Bg6 {[%clk 0:00:05.4]}
49... Ne7 {[%clk 0:00:11.9]} 50. Bd3 {[%clk 0:00:04.1]} 50... Nc6 {[%clk
0:00:12.2]} 51. Kf2 {[%clk 0:00:03.4]} 51... Nd4 {[%clk 0:00:11.5]} 52. Ng7
{[%clk 0:00:03.8]} 52... Kf6 {[%clk 0:00:11.5]} 53. Nf5 {[%clk 0:00:04.1]} 53...
Ne6 {[%clk 0:00:11.5]} 54. Nxh6 {[%clk 0:00:04.3]} 54... Nd4 {[%clk 0:00:11.3]}
55. Nf5 {[%clk 0:00:04.6]} 55... Nc6 {[%clk 0:00:10.9]} 56. Be4 {[%clk
0:00:04.6]} 56... Ne5 {[%clk 0:00:11.5]} 57. h3 {[%clk 0:00:05.1]} 57... Nf7
{[%clk 0:00:11.5]} 58. Bd5 {[%clk 0:00:05.2]} 58... Ne5 {[%clk 0:00:11.7]} 59.
Be4 {[%clk 0:00:05.8]} 59... Nc4 {[%clk 0:00:11.8]} 60. Bc2 {[%clk 0:00:06.7]}
60... Ke5 {[%clk 0:00:11.7]} 61. Nh6 {[%clk 0:00:06.2]} 61... Kf6 {[%clk
0:00:09.8]} 62. Ng8+ {[%clk 0:00:06.3]} 62... Ke5 {[%clk 0:00:10]} 63. Ne7
{[%clk 0:00:06.4]} 63... Nd6 {[%clk 0:00:09.6]} 64. Nc6+ {[%clk 0:00:06.5]}
64... Kf6 {[%clk 0:00:09.4]} 65. Kf3 {[%clk 0:00:06.3]} 65... Nc4 {[%clk
0:00:08.8]} 66. Bd3 {[%clk 0:00:06.6]} 66... Ne5+ {[%clk 0:00:09.1]} 67. Nxe5
{[%clk 0:00:05.6]} 67... Kxe5 {[%clk 0:00:09.2]} 68. Bf5 {[%clk 0:00:06.5]}
68... Kf6 {[%clk 0:00:09.4]} 69. Ke4 {[%clk 0:00:06.6]} 69... Kg7 {[%clk
0:00:08.3]} 70. Bc8 {[%clk 0:00:06.3]} 70... Kh6 {[%clk 0:00:08.7]} 71. Bb7
{[%clk 0:00:06.9]} 71... Kg6 {[%clk 0:00:09]} 72. Ke5 {[%clk 0:00:07.2]} 72...
Kh6 {[%clk 0:00:09.3]} 73. Bf3 {[%clk 0:00:07.7]} 73... Kg6 {[%clk 0:00:09.4]}
74. Ke6 {[%clk 0:00:08.2]} 74... Kg7 {[%clk 0:00:09]} 75. Kf5 {[%clk 0:00:08.5]}
75... Kh6 {[%clk 0:00:09]} 76. Kf6 {[%clk 0:00:08.9]} 76... Kh7 {[%clk
0:00:08.9]} 77. Kxg5 {[%clk 0:00:09.6]} 1-0